Cogmind - Beta 16.1 @@@ ROGUE MODE // 2026.02.28 @ 00:16:41 Player: Rocket Result: Self-destructed Performance ------------- Evolutions (3) 1500 Regions Visited (7) 1400 Robots Destroyed (73) 365 Value Destroyed (2382) 2382 Prototype IDs (1) 20 Alien Tech Used (0) 0 Bonus (130) 130 TOTAL SCORE: 5797 Bonus ------- Follower Combat Kills 130 Cogmind --------- Core Integrity 328/700 Matter 3/300 Energy 25/100 System Corruption 3% Temperature Cool (4) Movement Rolling (115) Ox1 Location -7/Storage Parts ------- > --- POWER (1) -------- (None) > --- PROPULSION (4) --- Light Treads Light Treads Armored Huge Wheel > --- UTILITY (6) ------ High-capacity Storage Unit Improved Sensor Array Improved Signal Interpreter Core Analyzer Transmission Jammer > --- WEAPON (2) ------- Advanced Assault Cannon Mace > --- INVENTORY (20) --- Improved Sensor Array ECM Suite Improved Utility Shielding Improved Utility Shielding Improved Light Armor Plating Tractor Beam Bomb Drone Bay Arc Projector Arc Projector Advanced Assault Cannon Gauss Cannon Heavy Missile Launcher Heavy Missile Launcher Remote Datajack Peak State ------------ > --- POWER ------------ Light Nuclear Core > --- PROPULSION ------- Light Treads Light Treads Armored Huge Wheel > --- UTILITY ---------- High-capacity Storage Unit Improved Sensor Array Improved Signal Interpreter Advanced Terrain Scan Processor Core Analyzer Transmission Jammer > --- WEAPON ----------- Advanced Assault Cannon Heavy Missile Launcher > --- INVENTORY -------- Improved Sensor Array ECM Suite Improved Utility Shielding Improved Utility Shielding Improved Light Armor Plating Tractor Beam Bomb Drone Bay Arc Projector Arc Projector Advanced Assault Cannon Gauss Cannon Heavy Missile Launcher Remote Datajack Mace [Rating: 45] Favorites ----------- Power Ion Engine Engine Ion Engine Power Core Light Nuclear Core Propulsion Aluminum Leg Treads Light Treads Leg Aluminum Leg Wheel Armored Huge Wheel Utility Large Storage Unit Device Improved Heat Sink Storage Large Storage Unit Processor Core Analyzer Hackware Hacking Suite Protection Improved Medium Armor Plating Weapon Heavy EM Pulse Gun Energy Gun Heavy EM Pulse Gun Energy Cannon Particle Cannon Ballistic Gun Light Assault Rifle Ballistic Cannon Advanced Assault Cannon Launcher Heavy Missile Launcher Impact Weapon Mace Slashing Weapon Mining Claw Build | -11 -10 -10 -10 -9 -8 -7 -7 ------- Run | Yrd Mat Min Exi Min Mat Fac Sto Slots Evolved 6 | . . . . . 4 2 . Power . | . . . . . . . . Propulsion 2 | . . . . . 2 . . Utility 4 | . . . . . 2 2 . Weapon . | . . . . . . . . Parts Attached 83 | 6 8 12 1 7 17 21 11 Power 9 | 1 . 2 . 1 2 2 1 Engine 5 | 1 . 2 . 1 1 . . Core 4 | . . . . . 1 2 1 Reactor . | . . . . . . . . Propulsion 22 | 2 2 6 . 1 5 4 2 Treads 2 | . . . . . . . 2 Leg 14 | . 2 6 . . 3 3 . Wheel 6 | 2 . . . 1 2 1 . Hover . | . . . . . . . . Flight . | . . . . . . . . Utility 28 | 1 3 1 1 3 6 8 5 Device 9 | . 1 1 . . 1 3 3 Storage 6 | 1 1 . 1 1 1 1 . Processor 6 | . . . . 1 2 2 1 Hackware 1 | . . . . . 1 . . Protection 6 | . 1 . . 1 1 2 1 Artifact . | . . . . . . . . Weapon 24 | 2 3 3 . 2 4 7 3 Energy Gun 7 | 2 2 2 . . . 1 . Energy Cannon 1 | . 1 . . . . . . Ballistic Gun 3 | . . 1 . 1 . 1 . Ballistic Cannon 6 | . . . . . 1 4 1 Launcher 5 | . . . . . 2 1 2 Special Weapon . | . . . . . . . . Impact Weapon 1 | . . . . . 1 . . Slashing Weapon 1 | . . . . 1 . . . Piercing Weapon . | . . . . . . . . Special Melee Weapon . | . . . . . . . . Unidentified Prototypes 1 | . . . . . . 1 . Corrupted Parts 4 | . 1 3 . . . . . System Corruption 27 | . 7 20 . . . . . Parts Lost 25 | . . 4 . . 6 5 10 Power 7 | . . 1 . . 2 2 2 Propulsion 6 | . . . . . 2 1 3 Utility 5 | . . . . . 1 1 3 Weapon 7 | . . 3 . . 1 1 2 Highest Loss Streak 6 | . . 2 . . 3 2 6 To Critical Strikes . | . . . . . . . . Average Backups 14 | 3 8 13 14 13 17 17 15 Power 1 | . 1 2 2 2 3 . . Propulsion 3 | 2 4 6 6 4 1 1 . Utility 4 | . . 2 3 4 5 7 6 Weapon 4 | . 2 1 2 2 6 7 7 Tool/Special . | . . . . . . . . Unused Backups 24 | . 2 . . 3 5 5 9 Power 3 | . . . . . 2 1 . Propulsion 4 | . . . . 3 1 . . Utility 9 | . . . . . 1 3 5 Weapon 7 | . 2 . . . 1 1 3 Tool/Special 1 | . . . . . . . 1 Average Slot Usage (%) 90 | . 90 99 83 88 87 91 80 Engine 8 | . 14 13 14 14 7 1 . Core 1 | . . . . . . 3 5 Leg 17 | . 6 28 28 9 9 19 9 Wheel 6 | . 21 . . 9 16 5 4 Device 9 | . 4 14 14 1 1 13 9 Storage 11 | . 14 14 14 14 9 7 7 Processor 8 | . . . . 3 13 17 19 Protection 3 | . 1 . . 9 7 4 . Energy Gun 10 | . 27 24 5 13 1 . . Ballistic Gun 2 | . . 2 5 13 1 . . Ballistic Cannon 3 | . . . . . 7 6 5 Launcher 1 | . . . . . 7 . 3 Impact Weapon 1 | . . . . . . 7 3 Peak Build Rating 45 | 6 10 13 12 22 38 44 45 Average Rating 24 | 4 9 11 10 17 34 38 38 On Entrance 15 | . 6 10 12 9 22 31 34 Avg Prop Armor Cover (%) 9 | . . . . . 7 7 14 Naked Turns . | . . . . . . . . Heaviest Build 74 | 11 32 32 30 40 74 59 62 Greatest Support 62 | 20 20 20 20 28 48 62 53 Greatest Overweight (x) 2 | . 2 1 1 1 2 2 2 Average Overweight (x) . | . . 1 1 1 1 . 1 Largest Inventory Capacity 20 | 8 15 15 15 15 20 20 20 Average Capacity 17 | 6 13 15 15 15 19 20 20 Most Carried 20 | 6 11 15 15 15 20 20 20 Average Carried 15 | 3 8 14 14 14 18 19 16 Final Capacity 20 | 8 15 15 15 15 20 20 20 Final Carried 20 | 6 11 15 15 15 17 20 15 Class Distribution -------------------- 84% | Mutant 15% | Scavenger-Mutant Dominant Class ---------------- Mutant | -10/Materials Mutant | -10/Mines Mutant | -10/Exiles Mutant | -9/Mines Mutant | -8/Materials Scavenger-Mutant | -7/Factory Mutant | -7/Storage Resources | -11 -10 -10 -10 -9 -8 -7 -7 ----------- Run | Yrd Mat Min Exi Min Mat Fac Sto Matter Collected 2013 | 249 81 227 . 102 641 451 262 Remotely 119 | . . . . . . . 119 Salvage Created 1835 | . 183 362 . 65 491 289 445 Parts 117 | . 12 16 . 6 37 18 28 Haulers Intercepted . | . . . . . . . . Recyclers Shooed 1 | . . . . 1 . . . Parts Field Recycled . | . . . . . . . . Retrieved Matter . | . . . . . . . . Parts Self-Destructed . | . . . . . . . . Prevented . | . . . . . . . . Parts Restored . | . . . . . . . . Kills | -11 -10 -10 -10 -9 -8 -7 -7 ------- Run | Yrd Mat Min Exi Min Mat Fac Sto Combat Hostiles Destroyed 58 | . 3 9 . 4 15 10 17 Guns 11 | . 2 9 . . . . . Cannons 23 | . . . . . 10 5 8 AOE 24 | . 1 . . 4 5 5 9 Classes Destroyed 12 | . 2 1 . . 6 2 1 Worker 2 | . . . . . . . 2 Builder 7 | . . . . . 3 1 3 Tunneler 1 | . . . . . 1 . . Recycler 1 | . . . . . . 1 . Operator 1 | . . . . . 1 . . Watcher 3 | . 1 . . . 2 . . Swarmer 17 | . . 3 . 3 3 4 4 Grunt 26 | . 3 6 . 1 4 2 10 Duelist 3 | . . . . . 1 1 1 Sentry 7 | . . . . . 5 1 1 Hunter 4 | . . . . . 2 1 1 Programmer 1 | . . . . . . 1 . Best Kill Streak 16 | . 4 4 . 4 12 5 16 Combat Bots Only 11 | . 3 4 . 4 8 5 11 Max Kills in Single Turn 4 | . 1 1 . 4 4 3 3 Gunslinging . | . . . . . . . . Exploded 4 | . 1 . . 4 2 3 3 Melee . | . . . . . . . . Uniques/NPCs Destroyed . | . . . . . . . . Combat | -11 -10 -10 -10 -9 -8 -7 -7 -------- Run | Yrd Mat Min Exi Min Mat Fac Sto Hostile Shots Fired 402 | . 21 67 . 13 80 72 149 Missed 133 | . 9 14 . 6 26 30 48 Hits 269 | . 12 53 . 7 54 42 101 Melee 2 | . . . . . 1 . 1 Projectile 267 | . 12 53 . 7 53 42 100 Critical Strikes 3 | . . . . . 2 . 1 Damage Taken 3741 | . 167 585 . 59 986 694 1250 Core 599 | . 23 113 . . 91 140 232 Absorbed by Shields . | . . . . . . . . Redirected to Shielding 21 | . . . . . . 21 . Core Remaining (%) 76 | 100 . . . 45 83 . . Volleys Fired 202 | . 13 34 . 6 70 31 48 Largest 2 | . 2 2 . 2 2 1 2 Hottest 90 | . 90 90 . 65 68 40 79 Shots Fired 239 | . 26 49 . 12 71 31 50 Gun 89 | . 26 49 . 12 2 . . Cannon 134 | . . . . . 65 29 40 Launcher 16 | . . . . . 4 2 10 Special . | . . . . . . . . Kinetic 147 | . . 6 . 6 66 29 40 Thermal . | . . . . . . . . Explosive 16 | . . . . . 4 2 10 Electromagnetic 76 | . 26 43 . 6 1 . . Robot Hit Streak 27 | . 3 11 . 2 8 11 27 Robot Miss Streak 7 | . 3 4 . 7 3 2 1 Penetration Max . | . . . . . . . . Secondary Targets . | . . . . . . . . Shots Hit Robots 142 | . 11 28 . 3 51 19 30 Core Hits 107 | . 3 13 . 5 29 16 41 Critical Kills . | . . . . . . . . Critical Parts Destroyed . | . . . . . . . . Critical Strikes 11 | . 1 3 . . 2 2 3 Blast 7 | . . . . . 2 2 3 Corrupt 4 | . 1 3 . . . . . Melee Attacks 20 | . . . . . 1 18 1 Impact 20 | . . . . . 1 18 1 Slashing . | . . . . . . . . Piercing . | . . . . . . . . Sneak Attacks 2 | . . . . . . 2 . Combat Hostiles . | . . . . . . . . Follow-up Attacks . | . . . . . . . . Damage Inflicted 5975 | . 235 436 . 177 2001 1061 2065 Guns 726 | . 235 436 . 55 . . . Cannons 2399 | . . . . . 1332 401 666 Explosions 2712 | . . . . 122 669 522 1399 Melee 138 | . . . . . . 138 . Ramming . | . . . . . . . . Kinetic 2442 | . . 28 . 15 1332 401 666 Thermal 122 | . . . . 122 . . . Explosive 2590 | . . . . . 669 522 1399 Electromagnetic 683 | . 235 408 . 40 . . . Impact 138 | . . . . . . 138 . Slashing . | . . . . . . . . Piercing . | . . . . . . . . Highest Corruption 27 | . 7 27 27 27 . 3 3 Average Corruption 17 | . 7 17 27 27 . 3 3 Corruption Purged . | . . . . . . . . Corruption Blocked . | . . . . . . . . Effects 103 | . . 55 15 25 . . 8 Message Errors 21 | . . 6 5 7 . . 3 Matter Fused 29 | . . 18 3 6 . . 2 Heat Flow Errors 9 | . . 7 . 2 . . . Energy Discharges 11 | . . 8 2 1 . . . Parts Fused 1 | . . . 1 . . . . Data Loss (minor) 17 | . . 8 3 5 . . 1 Data Loss (major) 6 | . . 4 . 2 . . . Misfires 1 | . . . . . . . 1 Alerts 5 | . . 1 1 2 . . 1 Weapon Failures 3 | . . 3 . . . . . Overload Shots . | . . . . . . . . Overflow Damage 121 | . . . . . 13 68 40 Projectiles . | . . . . . . . . Explosions 53 | . . . . . 13 . 40 Melee 68 | . . . . . . 68 . Knockbacks 12 | . . . . . 8 1 3 Impact . | . . . . . . . . Kinetic 12 | . . . . . 8 1 3 Secondary . | . . . . . . . . Self-Inflicted Damage 58 | . . . . . 45 . 13 Shots 2 | . . . . . 1 . 1 Rammed 1 | . . . . 1 . . . Targets Rammed 1 | . . . . 1 . . . Kicked . | . . . . . . . . Crushed . | . . . . . . . . Highest Temperature 244 | . 244 238 . 222 38 4 19 Average Temperature 70 | . 127 73 . 79 13 3 6 Received Heat Transfer 1251 | . 96 249 . 12 279 111 504 Effects 1 | . . 1 . . . . . Energy Bleed 1 | . . 1 . . . . . Siege Activations . | . . . . . . . . Martial Activations . | . . . . . . . . Shielding Activations . | . . . . . . . . Robots Disrupted 1 | . . 1 . . . . . Combat Hostiles 1 | . . 1 . . . . . Robots Corrupted 1 | . . . . . . 1 . Combat Hostiles . | . . . . . . . . Parts Fried 4 | . . 2 . . . 2 . Impact Corruptions 2 | . . . . . . 2 . Robots Melted . | . . . . . . . . Combat Hostiles . | . . . . . . . . Parts Melted . | . . . . . . . . Heat Transferred 50 | . . . . 50 . . . Parts Sabotaged . | . . . . . . . . Parts Stolen . | . . . . . . . . Parts Stripped . | . . . . . . . . Power Chain Reactions 1 | . . . . 1 . . . Alert | -11 -10 -10 -10 -9 -8 -7 -7 ------- Run | Yrd Mat Min Exi Min Mat Fac Sto Maximum Alert Level 1 | . . . . . 1 1 1 Low Security (%) 88 | 100 100 100 . 100 89 97 23 Level 1 11 | . . . . . 10 2 76 Level 2 . | . . . . . . . . Level 3 . | . . . . . . . . Level 4 . | . . . . . . . . Level 5 . | . . . . . . . . High Security . | . . . . . . . . Max Security . | . . . . . . . . Peak Influence 346 | . 77 83 . 132 251 206 346 Initial 79 | . . 18 . . 9 79 . Average 72 | . 19 14 . 38 77 103 237 Influence Increases 1911 | . 87 235 . 132 619 303 535 Destroy 0b10 Robot/C 1240 | . 60 180 . 100 360 200 340 Destroy 0b10 Robot/NC 75 | . 5 . . . 35 10 25 Destroy Leader 306 | . 22 40 . 10 124 50 60 Allied During Kill 30 | . . . . 17 13 . . Successful Hack 33 | . . . . . 26 . 7 Disable Machine 60 | . . . . . 15 15 30 Destroy Structure 137 | . . . . 5 31 28 73 Lose Combat Pursuer 30 | . . 15 . . 15 . . Influence Decreases 1670 | . 40 282 . 106 470 478 294 Entered New Map 142 | . . 29 . . 17 96 . Time Decay 1238 | . 40 233 . 106 333 332 194 Lost Part 230 | . . 20 . . 60 50 100 Lost Ally 60 | . . . . . 60 . . Squads Dispatched 15 | . 2 . . 1 4 3 5 Investigation 5 | . . . . 1 1 2 1 Extermination 1 | . . . . . . 1 . Reinforcement 9 | . 2 . . . 3 . 4 Assault . | . . . . . . . . Garrison . | . . . . . . . . Intercept . | . . . . . . . . Searches Triggered . | . . . . . . . . Construction Impeded 2 | . . . . . 1 . 1 Haulers Reinforced 1 | . . . . . . . 1 Active Scanning Responses . | . . . . . . . . Cargo Convoy Interrupts . | . . . . . . . . Stealth | -11 -10 -10 -10 -9 -8 -7 -7 --------- Run | Yrd Mat Min Exi Min Mat Fac Sto Distress Signals 12 | . 3 . . . 6 . 3 Communications Jammed . | . . . . . . . . Distress Signals . | . . . . . . . . Times Spotted 88 | . 8 10 . 5 29 11 25 Peak Tracking Total 7 | . 5 3 . 4 7 7 7 Tactical Retreats 5 | . . 1 . . 4 . . ECM-based Alert Blocks 6 | . . . . . 6 . . Traps | -11 -10 -10 -10 -9 -8 -7 -7 ------- Run | Yrd Mat Min Exi Min Mat Fac Sto Traps Triggered 3 | . . . . . 1 2 . Indirectly . | . . . . . . . . Trap Hack Attempts . | . . . . . . . . Triggered . | . . . . . . . . Disarmed . | . . . . . . . . Reprogrammed . | . . . . . . . . Reused . | . . . . . . . . Traps Extracted . | . . . . . . . . Installed . | . . . . . . . . Triggered . | . . . . . . . . Machines | -11 -10 -10 -10 -9 -8 -7 -7 ---------- Run | Yrd Mat Min Exi Min Mat Fac Sto Machines Disabled 4 | . . . . . 1 1 2 Max in Single Turn 1 | . . . . . 1 1 1 Machines Repaired . | . . . . . . . . Machines Dismantled . | . . . . . . . . Machines Sabotaged . | . . . . . . . . Overloaded Fab Kills . | . . . . . . . . Hacking | -11 -10 -10 -10 -9 -8 -7 -7 --------- Run | Yrd Mat Min Exi Min Mat Fac Sto Machines Accessed 13 | . 1 1 1 1 4 2 3 Terminals 8 | . 1 . . . 3 1 3 Fabricators . | . . . . . . . . Repair Stations . | . . . . . . . . Recycling Units . | . . . . . . . . Scanalyzers 2 | . . . . . 1 1 . Garrison Access . | . . . . . . . . Total Hacks 45 | . 1 1 23 1 10 4 5 Successful 34 | . . 1 23 1 7 1 1 Failed 11 | . 1 . . . 3 3 4 Catastrophic 2 | . . . . . . . 2 Database Lockouts . | . . . . . . . . Manual 9 | . 1 . . . 5 2 1 Terminals 14 | . 1 . . . 7 1 5 Fabricators . | . . . . . . . . Repair Stations . | . . . . . . . . Recycling Units . | . . . . . . . . Scanalyzers 6 | . . . . . 3 3 . Garrison Access . | . . . . . . . . Terminal Hacks 30 | . . 1 23 1 4 . 1 Record 23 | . . . 23 . . . . Part Schematic 1 | . . . . . 1 . . Robot Schematic 1 | . . . . . 1 . . Open Door 3 | . . 1 . 1 . . 1 Level Access Points 1 | . . . . . 1 . . Zone Layout 1 | . . . . . 1 . . Fabricator Hacks . | . . . . . . . . Repair Station Hacks . | . . . . . . . . Recycling Unit Hacks . | . . . . . . . . Scanalyzer 4 | . . . . . 3 1 . Retrieve Study 4 | . . . . . 3 1 . Garrison Access Hacks . | . . . . . . . . Unauthorized Hacks . | . . . . . . . . Terminals . | . . . . . . . . Fabricators . | . . . . . . . . Repair Stations . | . . . . . . . . Recycling Units . | . . . . . . . . Scanalyzers . | . . . . . . . . Garrison Access . | . . . . . . . . Data Cores Recovered . | . . . . . . . . Used . | . . . . . . . . Hacking Detections 7 | . . . . . 3 2 2 Full Trace Events 1 | . . . . . . . 1 Feedback Events . | . . . . . . . . Feedback Blocked . | . . . . . . . . Robot Schematics Acquired 1 | . . . . . 1 . . Robots Built . | . . . . . . . . Authchips . | . . . . . . . . Time . | . . . . . . . . Total Robot Build Rating . | . . . . . . . . Part Schematics Acquired 1 | . . . . . 1 . . Parts Built . | . . . . . . . . Authchips . | . . . . . . . . Time . | . . . . . . . . Total Part Build Rating . | . . . . . . . . Part Studies Acquired 2 | . . . . . 1 1 . Parts Repaired . | . . . . . . . . Time . | . . . . . . . . Parts Recycled . | . . . . . . . . Recycled Matter . | . . . . . . . . Retrieved Matter . | . . . . . . . . Retrieved Components . | . . . . . . . . Parts Scanalyzed . | . . . . . . . . Part Schematics Acquired . | . . . . . . . . Parts Damaged . | . . . . . . . . Bothacking | -11 -10 -10 -10 -9 -8 -7 -7 ------------ Run | Yrd Mat Min Exi Min Mat Fac Sto Used RIF Installer . | . . . . . . . . Robots Hacked . | . . . . . . . . Non-combat . | . . . . . . . . Combat . | . . . . . . . . Robot Hacks Applied . | . . . . . . . . Relay Couplers Released . | . . . . . . . . Fabnet Peak Effective % . | . . . . . . . . Robots Rewired . | . . . . . . . . Allies Hacked . | . . . . . . . . Hacks Repelled . | . . . . . . . . Allies | -11 -10 -10 -10 -9 -8 -7 -7 -------- Run | Yrd Mat Min Exi Min Mat Fac Sto Total Allies 3 | . . 3 . . . . . Largest Group 3 | . . 3 3 3 3 . . Highest-Rated Group 40 | . . 40 40 40 40 . . Highest-Rated Ally 16 | . . 16 16 16 16 . . Total Orders . | . . . . . . . . Ally Attacks 32 | . . . . 17 15 . . Total Damage 305 | . . . . 164 141 . . Kills 4 | . . . . 1 3 . . Allies Corrupted . | . . . . . . . . Allies Melted . | . . . . . . . . Intel | -11 -10 -10 -10 -9 -8 -7 -7 ------- Run | Yrd Mat Min Exi Min Mat Fac Sto Active Infowar (turns) 1092 | . . . . . 129 671 292 Sensors 183 | . . . . . . . 183 Terrain 776 | . . . . . . 671 105 Jamming 185 | . . . . . . . 185 ECM 148 | . . . . . 129 19 . Robot Analysis Total . | . . . . . . . . Derelict Logs Recovered 3 | . . 2 . 1 . . . Drone Launches . | . . . . . . . . Drone Recoveries . | . . . . . . . . Exploration | -11 -10 -10 -10 -9 -8 -7 -7 ------------- Run | Yrd Mat Min Exi Min Mat Fac Sto Turns Passed 4299 | 60 207 1207 302 439 877 751 456 Spaces Moved 2511 | 57 130 563 156 289 596 478 242 Core 2 | 2 . . . . . . . Treads . | . . . . . . . . Legs 1105 | . 23 563 156 66 . 246 51 Wheels 1404 | 55 107 . . 223 596 232 191 Hover . | . . . . . . . . Flight . | . . . . . . . . Fastest Speed 50 | 50 80 190 190 115 95 100 115 Average Speed 137 | 78 109 190 190 132 108 113 130 Slowest Speed 260 | 80 260 190 190 190 130 190 260 Overloaded Moves . | . . . . . . . . Propulsion Burnouts . | . . . . . . . . Robots Hopped . | . . . . . . . . Potential Cave-ins 5 | . . . . . . 5 . Cave-ins Triggered 1 | . . . . . . 1 . Exploration Rate (%) 39 | 3 28 84 49 61 37 13 43 Regions Visited 7 Branch Regions 4 Pre-discovered Areas 3 | . . 2 1 . . . . Known Exits Taken 2 | . . . . . 1 1 . Unknown Exits Taken 5 | 1 1 1 1 1 . . . Scrap Searched 3 | . . 1 . 2 . . . Spaces Dug 44 | . . . . . 15 22 7 Terrain Destroyed 180 | . . . . 5 35 35 105 Melee 15 | . . . . . 1 13 1 Projectile 33 | . . . . . 13 11 9 AOE 132 | . . . . 5 21 11 95 Terrain Rammed . | . . . . . . . . Walls Destroyed . | . . . . . . . . Machines Disabled . | . . . . . . . . Actions | -11 -10 -10 -10 -9 -8 -7 -7 --------- Run | Yrd Mat Min Exi Min Mat Fac Sto Total 3102 | 68 169 648 165 337 760 628 327 Wait 147 | . 3 33 4 19 36 35 17 Move 2503 | 56 129 562 155 288 595 476 242 Hop . | . . . . . . . . Pick Up 57 | 6 7 2 . 4 19 18 1 Fast Attach 43 | 6 8 2 . 5 8 8 6 Attach 29 | . . 4 . 1 9 9 6 Detach 7 | . . . 2 . 1 3 1 Swap 27 | . . 8 1 3 3 9 3 Drop 65 | . 9 3 3 10 18 20 2 Fire 202 | . 13 34 . 6 70 31 48 Melee 20 | . . . . . 1 18 1 Ram 1 | . . . . 1 . . . Kick . | . . . . . . . . Crush . | . . . . . . . . Escape Stasis 1 | . . . . . . 1 . Rewire . | . . . . . . . . Trap . | . . . . . . . . Miscellaneous . | . . . . . . . . Route ------- -11/Scrapyard -10/Materials -10/Mines (discovered 3 exits: [*Mat x2] / *Exi) -10/Exiles -9/Mines -8/Materials (discovered 3 exits: *Fac x3) -7/Factory -7/Storage History --------- Turn | Location | Event 9 | -11/Scrapyard | Discovered new exit (range 15) 61 | -11/Scrapyard | Entered Materials 159 | -10/Materials | Discovered new exit (range 14) 268 | -10/Materials | Entered Mines 303 | -10/Mines | Build established: Mutant 399 | -10/Mines | System corruption reached 10% 477 | -10/Mines | Learned location of Zion (-6) 690 | -10/Mines | Discovered new exit (range 6) 706 | -10/Mines | Found the Drone Emporium 719 | -10/Mines | Found Prototype Device 1228 | -10/Mines | Core integrity fell below 50% 1287 | -10/Mines | Discovered new exit (range 12) 1331 | -10/Mines | Assisted by bots powering up and referring to "LRC-V3" 1457 | -10/Mines | Deemed a non-threat by the Exiles lab entrance 1457 | -10/Mines | Discovered new exit (range 5) 1475 | -10/Mines | Entered Exiles 1475 | -10/Exiles | Accompanied by 3 allies 1521 | -10/Exiles | Met 8R-AWN 1553 | -10/Exiles | Met EX-HEX 1631 | -10/Exiles | Met EX-DEC 1753 | -10/Exiles | Discovered new exit (range 14) 1777 | -10/Exiles | Entered Mines 1777 | -9/Mines | Accompanied by 3 allies 1893 | -9/Mines | Met a Derelict shopkeep closing up shop 2019 | -9/Mines | YI-UF0 nonchalantly dropped a Grenade Launcher on the ground 2200 | -9/Mines | Discovered new exit (range 5) 2216 | -9/Mines | Entered Materials 2216 | -8/Materials | Accompanied by 3 allies 2216 | -8/Materials | Evolved 4 slots: Propulsion x2, Utility x2 2445 | -8/Materials | Lost 3 allies 2583 | -8/Materials | Identified exit to Factory 2952 | -8/Materials | Lost 3 parts (1p1n1u) 2964 | -8/Materials | Destroyed 8 combat bots 3069 | -8/Materials | Lost 3 parts (1p1n1w) 3093 | -8/Materials | Entered Factory 3093 | -7/Factory | Evolved 2 slots: Utility x2 3094 | -7/Factory | Identified exit to Storage 3724 | -7/Factory | Build established: Scavenger-Mutant 3766 | -7/Factory | Crushed by falling debris 3844 | -7/Factory | Entered Storage 3994 | -7/Storage | Destroyed 11 combat bots 4019 | -7/Storage | Lost 6 parts (1p2n2u1w) 4283 | -7/Storage | Core integrity fell below 50% 4300 | -7/Storage | Self-destructed Last Messages --------------- 04197_ U-05 Engineer builds a Wall. 04198_ U-05 Engineer lays Concrete. 04201_ U-05 Engineer builds a Wall. 04201_ U-05 Engineer lays Concrete. 04205_ U-05 Engineer builds a Wall. 04222_ System corrupted: FCS attempts to trigger Adv. Assault Cannon+. 04222_ System corrupted: Adv. Assault Cannon+ misfires. 04236_ Connecting with Door Terminal... 04236_ ALERT: Suspicious activity at Terminal S009. Dispatching Investigation squad. 04254_ Discarded Adv. Terrain Scan Processor. 04254_ Acquired Imp. Medium Armor Plating. 04263_ System corrupted: Component data lost. 04273_ Lgt. Nuclear Core destroyed. 04277_ U-05 Engineer builds a Wall. 04282_ U-05 Engineer lays Concrete. 04289_ U-05 Engineer builds a Wall. 04297_ Imp. Medium Armor Plating destroyed. Map ----- +----------------------------------------------------+ | ???????????# !#?????????????????????????????????? | | ???????????#! !#?????????????????????????????????? | | ???????????# !#?????????????????????????????????? | | ???????????# #?????????????????????????????????? | | ??????????## #?????????????????????????????????? | | ??????????#T #?????????????????????????????????? | | ??????????## #?????????????????????????????????? | | ?###########+############????????????????????????? | | ?# # + #?#"""##?????????????????? | | ?# """"" # # "" ### T#?????????????????? | | ?# """"" + # "["""" """#+###?????????????????? | | ?# """"" # # ]""[" #### #???????????????????? | | ?# !! + + "]""=" #??# ########????????????? | | ?# ["""# # """"=" #??# # #????????????? | | ?# R"# # " " #??# # #????????????? | | ?# """# # #??# # !#### ????? | | ?# # ############## #! / / "?????? | | ?##### #### #??????# # + #????????????? | | ?????###??# #??????# """ # # ! #????????????? | | ??????????# #??????# """ # ##+#####????????????? | | ??????????# #??????# """ + +?????????? | | ??????????# ######## # #?????????????? | | ??????????# " # # #?????????????? | | ??????????# # " # #?????????????? | | ??????????# =!# = ""##/## #?????????????? | | ????????### [# ###;@ a #?????????????? | | ????????# # #= /ggg ????????? | | ???????#### # ;###% ????????? | | ?????#?# # #= ##?# ?????????? | | ?????#?#### # ##?# """w ?????????? | | ???#???# # # ! ####+##### """ ?????????? | | ??###### ## # # # r ""?????????????? | | ?#####?# # + # """ # ?????????????? | | ??##?### #= # ] # """??? ????????????? | | ?###?#### #[ # # """???????"" ???????????? | | #?###### # ######## ????????????????????? | | ?#?#???#### # /??????????????????? | | #?###### # # ! ???????????????????? | | ######## # ! ""T""????????????????????? | | # """ "" [[# !!! % """"?????????????????????? | | # """ "" =%% ###???????????????????????? | | # """ """ # *# #???#?????????????????????? | | # [ " ###?#?#?????????????????????? | | # # # "" ##??#??#????????????????????? | | # # # "" #########???????????????????? | | # # # T" #?##???#????????????????????? | | # # % # "" #?#?##?#????????????????????? | | ########### # "" ##?#??#?????????????????????? | | ## # #! ##### ?????????????????????? | | "" """ # # #######?#? ??????????????????????? | +----------------------------------------------------+ Best States ------------- Heat Dissipation 39 Energy Generation 15 Energy Capacity 400 Matter Stores 300 Matter Capacity 300 Sight Range 16 Robot Scan Range 15 Terrain Scan Range 16 Terrain Scan Density 210 ECM Strength 1 Jamming Range 12 Additional Mass Support 9 Armor Coverage 450 Utility Shielding 66 Evasion (%) 55 Targeting Accuracy 5 Core Analysis 6 Salvage Targeting 1 Offensive Hacking 10 Item Schematics ----------------- Cargo Storage Unit | -8/Materials | Hacked Robot Schematics ------------------ M-28 Smith | -8/Materials | Hacked Fabricated ------------ Nothing Repaired ---------- Nothing Studied --------- Wheel | -8/Materials | Hacked Adv. Assault Cannon | -7/Factory | Hacked Alien Tech Used ----------------- None Achievements -------------- None Challenges ------------ None Game ------ Seed MultireflexBlastBank Manual? 0 Play Time 00:41:28 Cumulative 119.1 hours Start 2026.02.27 @ 06:16:44 End 2026.02.28 @ 00:16:41 Sessions 2 Manual Loads 0 Difficulty Rogue Special Mode None Game No. 172 Rogue 172 Adventurer 0 Explorer 0 Win Type - Total 0 Types 0/0/0/0/0/0/0/0/0/0 Lore% 33 Gallery% 45 Achievement% 36 Wizard Run 0 Options --------- Layout 1 ASCII 0 Keyboard 0 Movement Mouse Keybinds 0 Fullscreen 2 Font 24/Smallcaps Map View 50x35 Zoom Use 27% Tactical HUD 1 Map Filters NONE Filters NONE Steam 1 RUN: a3a78280-be48-442c-9dee-969a3024a81d